fUST/lending_fUST_20250507
["ID","MTS","AMOUNT","RATE_DAILY","PERIOD"]
[360115116,1746555043280,-400.0,0.00019178,2]
[360115117,1746555043290,-400.0,0.00019178,2]
[360115118,1746555043299,-516.26450725,0.00019178,2]
[360115119,1746555043309,-506.65,0.00019178,2]
[360115120,1746555043318,-400.0,0.00019178,2]
[360115121,1746555043328,-400.0,0.00019178,2]
[360115122,1746555043338,-400.0,0.00019178,2]
[360115123,1746555043347,-3371.95,0.00019178,2]
[360115124,1746555043356,-400.0,0.00019178,2]
[360115125,1746555043366,-400.0,0.00019178,2]
[360115126,1746555043375,-400.0,0.00019178,2]
[360115127,1746555043384,-400.0,0.00019178,2]
[360115128,1746555043394,-400.0,0.00019178,2]
[360115129,1746555043403,-1635.25,0.00019178,2]
[360115130,1746555043413,-400.0,0.00019178,2]
[360115131,1746555043422,-1172.28,0.00019178,2]
[360115132,1746555043432,-513.7459558,0.00019178,2]
[360115133,1746555043441,-781.9,0.00019178,2]
[360115134,1746555043451,-403.14127598,0.00019178,2]
[360115135,1746555043460,-855.56,0.00019178,2]
[360115136,1746555043471,-400.0,0.00019178,2]
[360115137,1746555043481,-400.0,0.00019178,2]
[360115138,1746555043621,-565.81,0.00019178,2]
[360115139,1746555043632,-400.0,0.00019178,2]
[360115140,1746555043642,-400.0,0.00019178,2]
[360115141,1746555043651,-220.53743959,0.00019178,2]
[360115142,1746555043660,-400.0,0.00019178,2]
[360115143,1746555043669,-400.0,0.00019178,2]
[360115144,1746555043678,-510.74,0.00019178,2]
[360115145,1746555043688,-400.0,0.00019178,2]
[360115146,1746555043697,-400.0,0.00019178,2]
[360115147,1746555043706,-206.0059834,0.00019178,2]
[360115148,1746555043716,-2446.14,0.00019178,2]
[360115149,1746555043725,-400.0,0.00019178,2]
[360115150,1746555043738,-291.15370518,0.00019178,2]
[360115151,1746555043747,-964.72,0.00019178,2]
[360115152,1746555043757,-400.0,0.00019178,2]
[360115153,1746555043766,-400.0,0.00019178,2]
[360115154,1746555043776,-400.0,0.00019178,2]
[360115155,1746555043786,-895.02,0.00019178,2]
[360115156,1746555043795,-495.61,0.00019178,2]
[360115157,1746555043805,-428.69,0.00019178,2]
[360115158,1746555043815,-400.0,0.00019178,2]
[360115159,1746555043824,-400.0,0.00019178,2]
[360115160,1746555043834,-400.0,0.00019178,2]
[360115161,1746555043843,-400.0,0.00019178,2]
[360115162,1746555043852,-400.0,0.00019178,2]
[360115163,1746555043861,-400.0,0.00019178,2]
[360115164,1746555043870,-400.0,0.00019178,2]
[360115165,1746555043879,-400.0,0.00019178,2]
[360115166,1746555043889,-400.0,0.00019178,2]
[360115167,1746555043899,-502.8703402,0.00019178,2]
[360115168,1746555043908,-400.0,0.00019178,2]
[360115169,1746555043918,-400.0,0.00019178,2]
[360115170,1746555043928,-403.34010556,0.00019178,2]
[360115171,1746555043937,-400.0,0.00019178,2]
[360115172,1746555043947,-400.0,0.00019178,2]
[360115173,1746555043956,-400.0,0.00019178,2]
[360115174,1746555043965,-402.10659483,0.00019178,2]
[360115175,1746555043976,-400.0,0.00019178,2]
[360115176,1746555043985,-1515.05,0.00019178,2]
[360115177,1746555043995,-400.0,0.00019178,2]
[360115178,1746555044004,-400.0,0.00019178,2]
[360115179,1746555044013,-400.0,0.00019178,2]
[360115180,1746555044023,-406.79252526,0.00019178,2]
[360115181,1746555044033,-400.0,0.00019178,2]
[360115182,1746555044042,-400.0,0.00019178,2]
[360115183,1746555044052,-153.94588979,0.00019178,2]
[360115184,1746555044061,-400.0,0.00019178,2]
[360115185,1746555044071,-400.0,0.00019178,2]
[360115186,1746555044080,-518.61,0.00019178,2]
[360115187,1746555044089,-436.53221498,0.00019178,2]
[360115188,1746555044098,-400.0,0.00019178,2]
[360115189,1746555044107,-400.0,0.00019178,2]
[360115190,1746555044116,-449.36,0.00019178,2]
[360115191,1746555044125,-400.0,0.00019178,2]
[360115192,1746555044134,-840.75,0.00019178,2]
[360115193,1746555044143,-502.1374089,0.00019178,2]
[360115194,1746555044152,-400.0,0.00019178,2]
[360115195,1746555044161,-500.0,0.00019178,2]
[360115196,1746555044171,-553.59,0.00019178,2]
[360115197,1746555044180,-400.0,0.00019178,2]
[360115198,1746555044189,-400.0,0.00019178,2]
[360115199,1746555044198,-779.44,0.00019178,2]
[360115200,1746555044207,-741.85,0.00019178,2]
[360115201,1746555044216,-741.85,0.00019178,2]
[360115202,1746555044226,-741.85,0.00019178,2]
[360115203,1746555044236,-741.85,0.00019178,2]
[360115204,1746555044245,-741.85,0.00019178,2]
[360115205,1746555044255,-741.85,0.00019178,2]
[360115206,1746555044264,-741.85,0.00019178,2]
[360115207,1746555044274,-741.85,0.00019178,2]
[360115208,1746555044283,-741.85,0.00019178,2]
[360115209,1746555044292,-400.0,0.00019178,2]
[360115210,1746555044302,-741.85,0.00019178,2]
[360115211,1746555044311,-741.85,0.00019178,2]
[360115212,1746555044320,-741.85,0.00019178,2]
[360115213,1746555044330,-400.0,0.00019178,2]
[360115214,1746555044339,-741.85,0.00019178,2]
[360115215,1746555044348,-741.85,0.00019178,2]
[360115216,1746555044358,-741.85,0.00019178,2]
[360115217,1746555044367,-741.85,0.00019178,2]
[360115218,1746555044376,-741.85,0.00019178,2]
[360115219,1746555044386,-400.0,0.00019178,2]
[360115220,1746555044395,-741.85,0.00019178,2]
[360115221,1746555044405,-741.85,0.00019178,2]
[360115222,1746555044415,-401.42416385,0.00019178,2]
[360115223,1746555044424,-741.85,0.00019178,2]
[360115224,1746555044434,-741.85,0.00019178,2]
[360115225,1746555044443,-741.85,0.00019178,2]
[360115226,1746555044452,-741.85,0.00019178,2]
[360115227,1746555044462,-569.36,0.00019178,2]
[360115228,1746555044472,-741.99484471,0.00019178,2]
[360115229,1746555044482,-400.0,0.00019178,2]
[360115230,1746555044491,-501.97207744,0.00019178,2]
[360115231,1746555044501,-1103.28,0.00019178,2]
[360115232,1746555044510,-400.0,0.00019178,2]
[360115233,1746555044520,-400.0,0.00019178,2]
[360115234,1746555044529,-400.0,0.00019178,2]
[360115235,1746555044539,-400.0,0.00019178,2]
[360115236,1746555044549,-473.40339252,0.00019178,2]
[360115237,1746555044558,-400.0,0.00019178,2]
[360115238,1746555044568,-500.0,0.00019178,2]
[360115239,1746555044578,-500.0,0.00019178,2]
[360115240,1746555044588,-500.0,0.00019178,2]
[360115241,1746555044597,-403.34072284,0.00019178,2]
[360115242,1746555044607,-314.86694994,0.00019178,2]
[360115243,1746555044616,-400.0,0.00019178,2]
[360115244,1746555044625,-2143.33,0.00019178,2]
[360115245,1746555044635,-400.0,0.00019178,2]
[360115246,1746555044643,-1940.39,0.00019178,2]
[360115247,1746555044653,-400.0,0.00019178,2]
[360115248,1746555044663,-611.24,0.00019178,2]
[360115249,1746555044672,-400.0,0.00019178,2]
[360115250,1746555044681,-400.0,0.00019178,2]
[360115251,1746555044691,-402.94644609,0.00019178,2]
[360115252,1746555044700,-400.0,0.00019178,2]
[360115253,1746555044709,-945.39,0.00019178,2]
[360115254,1746555044719,-4275.0,0.00019178,2]
[360115255,1746555044728,-400.0,0.00019178,2]
[360115256,1746555044742,-400.0,0.00019178,2]
[360115257,1746555044751,-400.0,0.00019178,2]
[360115258,1746555044761,-209.64157535,0.00019178,2]
[360115259,1746555044770,-692.67,0.00019178,2]
[360115260,1746555044781,-400.0,0.00019178,2]
[360115261,1746555044790,-3008.22,0.00019178,2]
[360115262,1746555044800,-634.58,0.00019178,2]
[360115263,1746555044811,-400.0,0.00019178,2]
[360115264,1746555044821,-400.0,0.00019178,2]
[360115265,1746555044831,-400.0,0.00019178,2]
[360115266,1746555044841,-400.0,0.00019178,2]
[360115267,1746555044850,-400.0,0.00019178,2]
[360115268,1746555044860,-400.0,0.00019178,2]
[360115269,1746555044870,-400.0,0.00019178,2]
[360115270,1746555044879,-400.0,0.00019178,2]
[360115271,1746555044889,-400.0,0.00019178,2]
[360115272,1746555044899,-666.84,0.00019178,2]
[360115273,1746555044909,-1965.93,0.00019178,2]
[360115274,1746555044919,-400.0,0.00019178,2]
[360115275,1746555044928,-2621.11,0.00019178,2]
[360115276,1746555044938,-400.0,0.00019178,2]
[360115277,1746555044948,-400.0,0.00019178,2]
[360115278,1746555044958,-257.3214084,0.00019178,2]
[360115279,1746555044968,-400.0,0.00019178,2]
[360115280,1746555044979,-500.0,0.00019178,2]
[360115281,1746555044988,-671.76,0.00019178,2]
[360115282,1746555044998,-400.0,0.00019178,2]
[360115283,1746555045008,-400.0,0.00019178,2]
[360115284,1746555045018,-400.0,0.00019178,2]
[360115285,1746555045028,-400.0,0.00019178,2]
[360115286,1746555045039,-235.51168844,0.00019178,2]
[360115287,1746555045050,-400.0,0.00019178,2]
[360115288,1746555045060,-400.0,0.00019178,2]
[360115289,1746555045070,-2394.23,0.00019178,2]
[360115290,1746555045080,-400.0,0.00019178,2]
[360115291,1746555045089,-1988.55,0.00019178,2]
[360115292,1746555045099,-400.0,0.00019178,2]
[360115293,1746555045110,-400.0,0.00019178,2]
[360115294,1746555045119,-400.0,0.00019178,2]
[360115295,1746555045129,-1762.42,0.00019178,2]
[360115296,1746555045138,-289.66766909,0.00019178,2]
[360115297,1746555045147,-400.0,0.00019178,2]
[360115298,1746555045156,-400.0,0.00019178,2]
[360115299,1746555045165,-400.0,0.00019178,2]
[360115300,1746555045175,-400.0,0.00019178,2]
[360115301,1746555045186,-401.0693151,0.00019178,2]
[360115302,1746555045196,-400.0,0.00019178,2]
[360115303,1746555045205,-400.0,0.00019178,2]
[360115304,1746555045216,-593.48,0.00019178,2]
[360115305,1746555045225,-503.55866188,0.00019178,2]
[360115306,1746555045235,-400.0,0.00019178,2]
[360115307,1746555045245,-400.0,0.00019178,2]
[360115308,1746555045255,-400.0,0.00019178,2]
[360115309,1746555045264,-469.45726411,0.00019178,2]
[360115310,1746555045275,-400.0,0.00019178,2]
[360115311,1746555045284,-400.0,0.00019178,2]
[360115312,1746555045293,-647.42,0.00019178,2]
[360115313,1746555045303,-400.0,0.00019178,2]
[360115314,1746555045312,-400.0,0.00019178,2]
[360115315,1746555045322,-400.0,0.00019178,2]
[360115316,1746555045331,-400.0,0.00019178,2]
[360115317,1746555045341,-400.0,0.00019178,2]
[360115319,1746555045350,-401.97286654,0.00019178,2]
[360115321,1746555045360,-400.0,0.00019178,2]
[360115323,1746555045369,-282.09599566,0.00019178,2]
[360115325,1746555045378,-400.0,0.00019178,2]
[360115327,1746555045388,-400.0,0.00019178,2]
[360115329,1746555045397,-778.7,0.00019178,2]
[360115330,1746555045406,-503.10174603,0.00019178,2]
[360115331,1746555045415,-400.0,0.00019178,2]
[360115332,1746555045425,-400.0,0.00019178,2]
[360115333,1746555045435,-1324.45,0.00019178,2]
[360115334,1746555045444,-400.0,0.00019178,2]
[360115335,1746555045454,-7534.29,0.00019178,2]
[360115337,1746555045464,-400.0,0.00019178,2]
[360115338,1746555045474,-1202.38,0.00019178,2]
[360115339,1746555045483,-400.0,0.00019178,2]
[360115340,1746555045492,-400.0,0.00019178,2]
[360115341,1746555045501,-405.49127718,0.00019178,2]
[360115342,1746555045510,-400.0,0.00019178,2]
[360115343,1746555045520,-400.0,0.00019178,2]
[360115344,1746555045529,-1713.68,0.00019178,2]
[360115345,1746555045538,-400.0,0.00019178,2]
[360115346,1746555045548,-400.0,0.00019178,2]
[360115347,1746555045557,-400.0,0.00019178,2]
[360115348,1746555045567,-400.0,0.00019178,2]
[360115349,1746555045576,-400.0,0.00019178,2]
[360115350,1746555045585,-400.0,0.00019178,2]
[360115351,1746555045595,-1815.93,0.00019178,2]
[360115352,1746555045604,-1324.47,0.00019178,2]
[360115353,1746555045724,-435.44,0.00019178,2]
[360115354,1746555045737,-1324.47,0.00019178,2]
[360115355,1746555045747,-1324.47,0.00019178,2]
[360115356,1746555045757,-1324.47,0.00019178,2]
[360115357,1746555045766,-1324.47,0.00019178,2]
[360115358,1746555045776,-1324.47,0.00019178,2]
[360115359,1746555045786,-1324.47,0.00019178,2]
[360115360,1746555045795,-1324.47,0.00019178,2]
[360115361,1746555045805,-400.0,0.00019178,2]
[360115362,1746555045815,-400.0,0.00019178,2]
[360115363,1746555045825,-1324.47,0.00019178,2]
[360115364,1746555045835,-1324.47,0.00019178,2]
[360115365,1746555045847,-404.18475722,0.00019178,2]
[360115366,1746555045856,-1324.47,0.00019178,2]
[360115367,1746555045865,-214.02295616,0.00019178,2]
[360115368,1746555045875,-1324.47,0.00019178,2]
[360115369,1746555045884,-1324.47,0.00019178,2]
[360115370,1746555045894,-1324.47,0.00019178,2]
[360115371,1746555045904,-1324.47,0.00019178,2]
[360115372,1746555045914,-1324.47,0.00019178,2]
[360115373,1746555045924,-1324.47,0.00019178,2]
[360115374,1746555045933,-400.0,0.00019178,2]
[360115375,1746555045943,-1324.47,0.00019178,2]
[360115376,1746555045952,-400.0,0.00019178,2]
[360115377,1746555045961,-1324.47,0.00019178,2]
[360115378,1746555045970,-1324.47,0.00019178,2]
[360115379,1746555045979,-1324.47,0.00019178,2]
[360115380,1746555045989,-1324.47,0.00019178,2]
[360115381,1746555045998,-1324.47,0.00019178,2]
[360115382,1746555046007,-1324.53327311,0.00019178,2]
[360115383,1746555046017,-657.42,0.00019178,2]
[360115384,1746555046026,-400.0,0.00019178,2]
[360115385,1746555046036,-9056.13,0.00019178,2]
[360115386,1746555046045,-438.48,0.00019178,2]
[360115387,1746555046055,-422.8,0.00019178,2]
[360115388,1746555046064,-405.98412562,0.00019178,2]
[360115389,1746555046073,-400.76641592,0.00019178,2]
[360115390,1746555046083,-735.24,0.00019178,2]
[360115391,1746555046092,-400.0,0.00019178,2]
[360115392,1746555046102,-283.18379737,0.00019178,2]
[360115393,1746555046113,-400.0,0.00019178,2]
[360115394,1746555046122,-400.0,0.00019178,2]
[360115395,1746555046132,-2093.85,0.00019178,2]
[360115396,1746555046141,-400.0,0.00019178,2]
[360115397,1746555046151,-400.0,0.00019178,2]
[360115398,1746555046161,-229.43161492,0.00019178,2]
[360115399,1746555046170,-400.0,0.00019178,2]
[360115400,1746555046180,-400.0,0.00019178,2]
[360115401,1746555046190,-400.0,0.00019178,2]
[360115402,1746555046199,-400.0,0.00019178,2]
[360115403,1746555046209,-3107.34,0.00019178,2]
[360115404,1746555046219,-3995.95,0.00019178,2]
[360115405,1746555046229,-1311.27,0.00019178,2]
[360115406,1746555046239,-537.46,0.00019178,2]
[360115407,1746555046249,-400.0,0.00019178,2]
[360115408,1746555046259,-400.0,0.00019178,2]
[360115409,1746555046268,-400.0,0.00019178,2]
[360115410,1746555046278,-400.0,0.00019178,2]
[360115411,1746555046287,-400.0,0.00019178,2]
[360115412,1746555046296,-500.0,0.00019178,2]
[360115413,1746555046305,-500.0,0.00019178,2]
[360115414,1746555046315,-500.0,0.00019178,2]
[360115415,1746555046324,-500.0,0.00019178,2]
[360115416,1746555046333,-500.0,0.00019178,2]
[360115417,1746555046343,-500.0,0.00019178,2]
[360115418,1746555046352,-500.0,0.00019178,2]
[360115419,1746555046362,-500.0,0.00019178,2]
[360115420,1746555046371,-500.0,0.00019178,2]
[360115421,1746555046382,-500.0,0.00019178,2]
[360115422,1746555046392,-500.0,0.00019178,2]
[360115423,1746555046401,-500.0,0.00019178,2]
[360115424,1746555046411,-500.0,0.00019178,2]
[360115425,1746555046421,-500.0,0.00019178,2]
[360115426,1746555046431,-500.0,0.00019178,2]
[360115427,1746555046441,-500.0,0.00019178,2]
[360115428,1746555046450,-500.0,0.00019178,2]
[360115429,1746555046460,-400.0,0.00019178,2]
[360115430,1746555046470,-500.0,0.00019178,2]
[360115431,1746555046480,-500.0,0.00019178,2]
[360115432,1746555046490,-500.0,0.00019178,2]
[360115433,1746555046500,-500.0,0.00019178,2]
[360115434,1746555046509,-500.0,0.00019178,2]
[360115435,1746555046519,-500.0,0.00019178,2]
[360115436,1746555046529,-500.0,0.00019178,2]
[360115437,1746555046538,-500.0,0.00019178,2]
[360115438,1746555046548,-500.0,0.00019178,2]
[360115439,1746555046558,-500.0,0.00019178,2]
[360115440,1746555046568,-500.0,0.00019178,2]
[360115441,1746555046577,-500.0,0.00019178,2]
[360115442,1746555046586,-500.0,0.00019178,2]
[360115443,1746555046596,-500.0,0.00019178,2]
[360115444,1746555046606,-500.0,0.00019178,2]
[360115445,1746555046615,-500.0,0.00019178,2]
[360115446,1746555046626,-1456.25,0.00019178,2]
[360115447,1746555046635,-500.0,0.00019178,2]
[360115448,1746555046645,-554.11657521,0.00019178,2]
[360115449,1746555046656,-500.0,0.00019178,2]
[360115450,1746555046666,-500.0,0.00019178,2]
[360115451,1746555046675,-400.0,0.00019178,2]
[360115452,1746555046685,-896.18,0.00019178,2]
[360115453,1746555046694,-608.37,0.00019178,2]
[360115454,1746555046704,-400.0,0.00019178,2]
[360115455,1746555046713,-407.37330949,0.00019178,2]
[360115456,1746555046723,-400.0,0.00019178,2]
[360115457,1746555046735,-532.07,0.00019178,2]
[360115458,1746555046745,-1064.58,0.00019178,2]
[360115459,1746555046756,-897.74,0.00019178,2]
[360115460,1746555046766,-400.0,0.00019178,2]
[360115461,1746555046777,-400.0,0.00019178,2]
[360115462,1746555046787,-400.0,0.00019178,2]
[360115463,1746555046797,-400.0,0.00019178,2]
[360115464,1746555046807,-205.07269539,0.00019178,2]
[360115465,1746555046817,-500.0,0.00019178,2]
[360115466,1746555046827,-520.0,0.00019178,2]
[360115467,1746555046837,-500.0,0.00019178,2]
[360115468,1746555046846,-500.0,0.00019178,2]
[360115469,1746555046856,-500.0,0.00019178,2]
[360115470,1746555046865,-507.22532263,0.00019178,2]
[360115471,1746555046874,-400.0,0.00019178,2]
[360115472,1746555046884,-400.0,0.00019178,2]
[360115473,1746555046894,-613.87,0.00019178,2]
[360115474,1746555046904,-403.25345902,0.00019178,2]
[360115475,1746555046914,-417.87,0.00019178,2]
[360115476,1746555046924,-400.0,0.00019178,2]
[360115477,1746555046936,-3687.73,0.00019178,2]
[360115478,1746555046947,-401.01869542,0.00019178,2]
[360115479,1746555046957,-19307.99,0.00019178,2]
[360115480,1746555046967,-400.0,0.00019178,2]
[360115481,1746555046978,-400.0,0.00019178,2]
[360115482,1746555046988,-400.0,0.00019178,2]
[360115483,1746555046999,-400.0,0.00019178,2]
[360115484,1746555047009,-400.0,0.00019178,2]
[360115485,1746555047020,-400.0,0.00019178,2]
[360115486,1746555047030,-400.0,0.00019178,2]
[360115487,1746555047040,-400.0,0.00019178,2]
[360115488,1746555047050,-917.94,0.00019178,2]
[360115489,1746555047059,-400.0,0.00019178,2]
[360115490,1746555047069,-400.0,0.00019178,2]
[360115491,1746555047079,-503.5525166,0.00019178,2]
[360115492,1746555047089,-400.0,0.00019178,2]
[360115493,1746555047098,-400.0,0.00019178,2]
[360115494,1746555047107,-400.0,0.00019178,2]
[360115495,1746555047116,-841.77,0.00019178,2]
[360115496,1746555047126,-400.0,0.00019178,2]
[360115497,1746555047135,-400.0,0.00019178,2]
[360115498,1746555047145,-400.0,0.00019178,2]
[360115499,1746555047155,-1481.29,0.00019178,2]
[360115500,1746555047164,-400.0,0.00019178,2]
[360115501,1746555047174,-400.0,0.00019178,2]
[360115502,1746555047183,-409.14060265,0.00019178,2]
[360115503,1746555047193,-400.0,0.00019178,2]
[360115504,1746555047202,-3620.9,0.00019178,2]
[360115505,1746555047212,-400.0,0.00019178,2]
[360115506,1746555047222,-400.0,0.00019178,2]
[360115507,1746555047232,-934.45,0.00019178,2]
[360115508,1746555047241,-400.0,0.00019178,2]
[360115509,1746555047251,-400.0,0.00019178,2]
[360115510,1746555047261,-2299.36,0.00019178,2]
[360115511,1746555047270,-400.0,0.00019178,2]
[360115512,1746555047279,-1466.55,0.00019178,2]
[360115513,1746555047289,-400.0,0.00019178,2]
[360115514,1746555047299,-400.0,0.00019178,2]
[360115515,1746555047309,-400.0,0.00019178,2]
[360115516,1746555047318,-400.0,0.00019178,2]
[360115517,1746555047327,-400.0,0.00019178,2]
[360115518,1746555047337,-400.0,0.00019178,2]
[360115519,1746555047347,-400.0,0.00019178,2]
[360115520,1746555047357,-1755.77,0.00019178,2]
[360115521,1746555047367,-400.0,0.00019178,2]
[360115522,1746555047377,-400.0,0.00019178,2]
[360115523,1746555047386,-1499.83,0.00019178,2]
[360115524,1746555047396,-400.0,0.00019178,2]
[360115525,1746555047405,-400.0,0.00019178,2]
[360115526,1746555047415,-400.0,0.00019178,2]
[360115527,1746555047424,-400.0,0.00019178,2]
[360115528,1746555047434,-400.0,0.00019178,2]
[360115529,1746555047443,-998.0,0.00019178,2]
[360115530,1746555047453,-400.0,0.00019178,2]
[360115531,1746555047463,-2816.34,0.00019178,2]
[360115532,1746555047472,-400.0,0.00019178,2]
[360115533,1746555047482,-400.0,0.00019178,2]
[360115534,1746555047491,-2880.62,0.00019178,2]
[360115535,1746555047501,-400.0,0.00019178,2]
[360115536,1746555047511,-400.0,0.00019178,2]
[360115537,1746555047520,-400.0,0.00019178,2]
[360115538,1746555047532,-400.0,0.00019178,2]
[360115539,1746555047541,-8873.46,0.00019178,2]
[360115540,1746555047551,-3310.84,0.00019178,2]
[360115541,1746555047561,-400.0,0.00019178,2]
[360115542,1746555047570,-400.0,0.00019178,2]
[360115543,1746555047580,-400.0,0.00019178,2]
[360115544,1746555047693,-400.0,0.00019178,2]
[360115545,1746555047704,-400.0,0.00019178,2]
[360115546,1746555047714,-400.0,0.00019178,2]
[360115547,1746555047723,-400.0,0.00019178,2]
[360115548,1746555047736,-427.19,0.00019178,2]
[360115549,1746555047746,-400.0,0.00019178,2]
[360115550,1746555047756,-1367.64,0.00019178,2]
[360115551,1746555047766,-400.0,0.00019178,2]
[360115552,1746555047776,-400.0,0.00019178,2]
[360115553,1746555047785,-265.84274164,0.00019178,2]
[360115554,1746555047795,-208.10094571,0.00019178,2]
[360115555,1746555047805,-400.0,0.00019178,2]
[360115556,1746555047814,-442.77,0.00019178,2]
[360115557,1746555047824,-205.50026287,0.00019178,2]
[360115558,1746555047834,-400.0,0.00019178,2]
[360115559,1746555047844,-1625.12,0.00019178,2]
[360115560,1746555047853,-401.70271421,0.00019178,2]
[360115561,1746555047862,-400.0,0.00019178,2]
[360115562,1746555047872,-400.0,0.00019178,2]
[360115563,1746555047882,-400.0,0.00019178,2]
[360115564,1746555047891,-400.0,0.00019178,2]
[360115565,1746555047902,-2573.72,0.00019178,2]
[360115566,1746555047911,-433.78,0.00019178,2]
[360115567,1746555047922,-451.19,0.00019178,2]
[360115568,1746555047931,-400.0,0.00019178,2]
[360115569,1746555047941,-400.0,0.00019178,2]
[360115570,1746555047951,-400.0,0.00019178,2]
[360115571,1746555047961,-400.0,0.00019178,2]
[360115572,1746555047971,-2645.03,0.00019178,2]
[360115573,1746555047982,-506.19767012,0.00019178,2]
[360115574,1746555047992,-400.0,0.00019178,2]
[360115575,1746555048001,-400.0,0.00019178,2]
[360115576,1746555048011,-400.0,0.00019178,2]
[360115577,1746555048020,-400.0,0.00019178,2]
[360115578,1746555048030,-640.19,0.00019178,2]
[360115579,1746555048039,-1358.88,0.00019178,2]
[360115580,1746555048049,-400.0,0.00019178,2]
[360115581,1746555048059,-400.0,0.00019178,2]
[360115582,1746555048069,-698.58,0.00019178,2]
[360115583,1746555048079,-400.0,0.00019178,2]
[360115584,1746555048089,-359.53149701,0.00019178,2]
[360115585,1746555048098,-400.0,0.00019178,2]
[360115586,1746555048107,-2451.0,0.00019178,2]
[360115587,1746555048117,-2370.45,0.00019178,2]
[360115588,1746555048127,-400.0,0.00019178,2]
[360115589,1746555048137,-400.0,0.00019178,2]
[360115590,1746555048146,-1234.29,0.00019178,2]
[360115591,1746555048156,-400.0,0.00019178,2]
[360115592,1746555048165,-400.0,0.00019178,2]
[360115593,1746555048175,-400.0,0.00019178,2]
[360115594,1746555048184,-401.33650777,0.00019178,2]
[360115595,1746555048193,-563.92,0.00019178,2]
[360115596,1746555048203,-401.36702011,0.00019178,2]
[360115597,1746555048212,-151.0,0.00019178,2]
[360115598,1746555048223,-709.483782,0.00019178,2]
[360115599,1746555048232,-151.0,0.000192,2]
[360115600,1746555048243,-151.0,0.000192,2]
[360115601,1746555048252,-156.587,0.00019233,2]
[360115602,1746555048262,-313.9004746,0.00019286,2]
[360115603,1746555048271,-160.0,0.00019286,2]
[360115604,1746555048280,-160.0,0.00019286,2]
[360115605,1746555048289,-160.0,0.00019286,2]
[360115606,1746555048299,-160.0,0.00019286,2]
[360115607,1746555048308,-160.0,0.00019286,2]
[360115608,1746555048317,-160.0,0.00019286,2]
[360115609,1746555048327,-162.380719,0.00019288,2]
[360115610,1746555048336,-613.55168602,0.00019294,2]
[360115611,1746555048346,-151.0,0.000193,2]
[360115612,1746555048355,-151.0,0.000193,2]
[360115613,1746555048365,-153.394978,0.00019329,2]
[360115614,1746555048375,-151.0,0.00019329,2]
[360115615,1746555048384,-151.0,0.00019329,2]
[360115616,1746555048393,-518.187357,0.00019329,2]
[360115617,1746555048402,-518.187357,0.00019329,2]
[360115618,1746555048412,-151.0,0.00019329,2]
[360115619,1746555048421,-151.0,0.00019329,2]
[360115620,1746555048431,-151.0,0.00019329,2]
[360115621,1746555048441,-151.0,0.00019329,2]
[360115622,1746555048450,-151.0,0.00019329,2]